fUSD/lending_fUSD_20250812
["ID","MTS","AMOUNT","RATE_DAILY","PERIOD"]
[378727669,1754993437818,-1000.0,0.0003898,120]
[378727670,1754993437827,-2683.39449578,0.0003898,3]
[378727671,1754993437838,-3556.5,0.0003898,3]
[378727672,1754993437857,-364.73999997,0.0003898,3]
[378727836,1754993439500,-893.0,0.00036667,2]
[378727838,1754993439510,-189.64833014,0.0003898,3]
[378727888,1754993439973,-1156.2,0.0003898,3]
[378727890,1754993439985,-635.26305195,0.0003898,3]
[378728156,1754993442597,-24198.00023279,0.0003898,3]
[378728183,1754993442807,-312.869998,0.00038979,3]
[378728212,1754993443072,-575.130002,0.00038979,3]
[378728214,1754993443081,-19962.35115708,0.0003898,3]
[378728502,1754993445701,-17143.60068,0.0003898,3]
[378728504,1754993445712,-834.76937067,0.0003898,3]
[378728506,1754993445723,-798.04000208,0.0003898,3]
[378728528,1754993445916,-514.0,0.00035242,2]
[378728531,1754993445925,-7602.00000001,0.0003898,3]
[378731101,1754994308825,176077.9,0.00019,2]
[378731102,1754994308855,50000.0,0.00019,2]
[378731103,1754994308880,50000.0,0.00019,2]
[378731107,1754994364092,188.0,0.00030136,120]
[378731109,1754994410155,303.70605368,0.00018,3]
[378731114,1754994468776,19200.59814241,0.0002,5]
[378731115,1754994468803,6648.88084834,0.0002,5]
[378731116,1754994468830,46968.9382644,0.0002,5]
[378731118,1754994518840,328.4845672,0.000246,120]
[378731123,1754994548103,-300.0,0.00017989,2]
[378731124,1754994548129,-4388.00615015,0.0001799,2]
[378731135,1754994631724,-1200.0,0.00017989,2]
[378731136,1754994631734,-23177.70993444,0.0001799,2]
[378731137,1754994631985,-834.98957114,0.0001799,2]
[378731138,1754994631997,-1224.76840754,0.0001799,2]
[378731139,1754994632013,-653.68109119,0.0001799,2]
[378731140,1754994632031,-22755.24902909,0.0001799,2]
[378731141,1754994632041,-42013.53138953,0.0001799,2]
[378731142,1754994632053,-5787.15522221,0.0001799,2]
[378731143,1754994632064,-6331.21059632,0.0001799,2]
[378731149,1754994632368,-1694.97025864,0.0001799,2]
[378731184,1754994637695,-2825.50050172,0.0001799,2]
[378731185,1754994637803,-2227.99427031,0.0001799,2]
[378731186,1754994637814,-1906.92835651,0.0001799,2]
[378731187,1754994637826,-4634.30853929,0.0001799,2]
[378731188,1754994637837,-30074.06190358,0.0001799,2]
[378731189,1754994637857,-269.79239395,0.0001799,2]
[378731190,1754994637868,-21550.23910906,0.0001799,2]
[378731191,1754994637879,-289.41608565,0.0001799,2]
[378731192,1754994637912,-281.55,0.0001799,2]
[378731193,1754994637923,-304.01686105,0.0001799,2]
[378731345,1754994639652,-1761.59676164,0.0001799,2]
[378731377,1754994639949,-10283.28233891,0.0001799,2]
[378731379,1754994639961,-4796.9623833,0.0001799,2]
[378731382,1754994639975,-52789.03517896,0.0001799,2]
[378731384,1754994639990,-2775.94000765,0.0001799,2]
[378731386,1754994640001,-11244.58424882,0.0001799,2]
[378731392,1754994640047,-6296.56555587,0.0001799,2]
[378731395,1754994640059,-17124.80000002,0.0001799,2]
[378731397,1754994640070,-1747.7,0.0001799,2]
[378731404,1754994640132,-198.96710618,0.00017989,2]
[378731406,1754994640142,-237.6297259,0.00017989,2]
[378731408,1754994640151,-155.40316792,0.0001799,2]
[378731410,1754994640163,-1942.9070334,0.0001799,2]
[378731684,1754994642839,-842.14091999,0.0001799,2]
[378731685,1754994642851,-1481.15512551,0.0001799,2]
[378731686,1754994642912,-300.0,0.0001799,2]
[378731687,1754994642956,-343.4,0.0001799,2]
[378731688,1754994642976,-1928.0,0.0001799,2]
[378731689,1754994642991,-604.89081207,0.0001799,2]
[378731692,1754994643011,-2445.4060374,0.0001799,2]
[378731695,1754994643029,-42465.46887956,0.0001799,2]
[378731699,1754994643053,-807.39338201,0.0001799,2]
[378731701,1754994643069,-1892.60661799,0.0001799,2]
[378731984,1754994645733,-37339.5998,0.0001799,2]
[378731986,1754994645749,-777.89999642,0.0001799,2]
[378732003,1754994645902,-51337.23174413,0.0001799,2]
[378732006,1754994645914,-321.19664277,0.000187,2]
[378732008,1754994645928,-169.65898018,0.000188,2]
[378732011,1754994645941,-153.88747652,0.000189,2]
[378732013,1754994645953,-36460.8221409,0.00019,2]
[378732015,1754994645966,-9604.91932335,0.00019,2]
[378732018,1754994645978,-159841.98520495,0.00019,2]
[378732023,1754994646014,-1272.67811646,0.00019,2]
[378732025,1754994646030,-19131.77558185,0.00019,2]
[378732029,1754994646057,-355.9249255,0.00019,2]
[378732091,1754994646641,-3549.32871095,0.00019,2]
[378732094,1754994646653,-1485.44107104,0.00019,2]
[378732664,1754994833585,172.55,0.00013699,2]
[378732672,1754995086577,3031.0617356,0.00019,5]
[378732673,1754995086612,2371.19600988,0.00019,5]
[378732676,1754995137207,1048.86,0.00028507,120]
[378732677,1754995173911,2613.56225684,0.00019,7]
[378732685,1754995831951,-200.31927518,0.00017889,2]
[378732686,1754995831961,-102.71072388,0.00017988,2]
[378732687,1754995832112,-361.5458572,0.00017988,2]
[378732688,1754995832122,-554.46936043,0.00017988,2]
[378732689,1754995832131,-1200.0,0.00017989,2]
[378732690,1754995832141,-1017.45201016,0.00017989,2]
[378732691,1754995832150,-2000.0,0.0001799,2]
[378732692,1754995832160,-2000.0,0.0001799,2]
[378732693,1754995832169,-2000.0,0.0001799,2]
[378732694,1754995832179,-2000.0,0.0001799,2]
[378732695,1754995832188,-2000.0,0.0001799,2]
[378732696,1754995832197,-2000.0,0.0001799,2]
[378732697,1754995832207,-2000.0,0.0001799,2]
[378732698,1754995832216,-457.713,0.0001799,2]
[378732699,1754995832225,-313.1983,0.00018799,2]
[378732700,1754995832235,-828.68833992,0.00018835,2]
[378732701,1754995832244,-200.31927518,0.000189,2]
[378732702,1754995832253,-500.0,0.00018973,2]
[378732703,1754995832262,-500.0,0.00018973,2]
[378732704,1754995832272,-500.0,0.00018973,2]
[378732705,1754995832281,-500.0,0.00018973,2]
[378732706,1754995832291,-500.0,0.00018973,2]
[378732707,1754995832300,-5001.58484705,0.00018999,2]
[378732708,1754995832309,-12633.38685243,0.00019,2]
[378732709,1754995832318,-30726.47589019,0.00019,2]
[378732710,1754995832328,-202.91506463,0.00019,2]
[378732711,1754995832337,-151.0,0.00019,2]
[378732712,1754995832346,-151.59014724,0.00019,2]
[378732713,1754995832356,-500.0,0.00019,2]
[378732714,1754995832365,-500.0,0.00019,2]
[378732715,1754995832374,-186.8362,0.00019,2]
[378732717,1754995832383,-1000.0,0.00019521,2]
[378732719,1754995832393,-2810.6338627,0.0001981,2]
[378732721,1754995832402,-1195.42327769,0.0001998,2]
[378732724,1754995832412,-4222.19,0.00020057,2]
[378732726,1754995832421,-444.27748332,0.00020068,2]
[378732728,1754995832430,-1859.00737198,0.00022,14]
[378732730,1754995832440,-154.36,0.00022383,2]
[378732732,1754995832449,-150.54,0.00023112,2]
[378732734,1754995832458,-154.36,0.00024438,2]
[378732736,1754995832468,-3713.66,0.0002498,2]
[378732738,1754995832477,-999.99,0.0002498,2]
[378732740,1754995832486,-150.99,0.0002498,2]
[378732742,1754995832496,-154.36,0.00026493,2]
[378732744,1754995832505,-152.09746572,0.00027397,5]
[378732746,1754995832514,-5800.0,0.000274,2]
[378732748,1754995832524,-159.78,0.00027434,2]
[378732750,1754995832533,-666.0,0.00027559,3]
[378732752,1754995832543,-150.0,0.00027687,2]
[378732754,1754995832552,-180.59,0.00027744,2]
[378732756,1754995832561,-608.9,0.00027827,2]
[378732758,1754995832571,-5000.0,0.00027832,2]
[378732760,1754995832580,-592.38,0.00027834,2]
[378732762,1754995832589,-2636.18,0.00027844,2]
[378732764,1754995832598,-317.11,0.00027968,30]
[378732766,1754995832608,-250.0,0.00028376,2]
[378732768,1754995832617,-439.82,0.00028376,2]
[378732770,1754995832626,-150.0,0.00028463,2]
[378732772,1754995832635,-255.4031844,0.00028463,2]
[378732774,1754995832644,-500.0,0.00028463,2]
[378732776,1754995832653,-500.0,0.00028463,2]
[378732778,1754995832663,-159.78,0.00028463,2]
[378732780,1754995832672,-165.48,0.00028529,2]
[378732782,1754995832682,-1000.0,0.00028546,2]
[378732785,1754995832691,-154.36,0.00028547,2]
[378732787,1754995832700,-8807.57,0.00028589,2]
[378732789,1754995832710,-150.0,0.00028737,2]
[378732791,1754995832719,-500.0,0.00028737,2]
[378732793,1754995832728,-500.0,0.00028737,2]
[378732795,1754995832738,-150.0,0.00029011,2]
[378732797,1754995832748,-500.0,0.00029011,2]
[378732799,1754995832758,-500.0,0.00029011,2]
[378732801,1754995832767,-150.0,0.00029285,2]
[378732803,1754995832775,-500.0,0.00029285,2]
[378732805,1754995832785,-252.0,0.00029285,2]
[378732807,1754995832794,-159.78,0.00029492,2]
[378732809,1754995832804,-186.44,0.0002951,91]
[378732811,1754995832813,-250.0,0.00029559,2]
[378732813,1754995832822,-413.48070981,0.00029559,2]
[378732815,1754995832831,-500.0,0.00029794,2]
[378732817,1754995832840,-9103.0,0.00029794,2]
[378732819,1754995832849,-150.0,0.00029794,2]
[378732821,1754995832859,-240.67875108,0.00029794,2]
[378732823,1754995832868,-150.0,0.00029794,2]
[378732825,1754995832877,-150.0,0.00029794,2]
[378732827,1754995832886,-150.0,0.00029794,2]
[378732829,1754995832895,-150.0,0.00029794,2]
[378732831,1754995832904,-439.82,0.00029794,2]
[378732833,1754995832914,-150.71,0.00029953,2]
[378732835,1754995832923,-300.0,0.0003,2]
[378732837,1754995832933,-500.0,0.00030068,2]
[378732839,1754995832943,-9103.0,0.00030068,2]
[378732857,1754995833110,-150.0,0.00030068,2]
[378732859,1754995833120,-150.0,0.00030068,2]
[378732861,1754995833130,-150.0,0.00030068,2]
[378732863,1754995833140,-150.0,0.00030068,2]
[378732865,1754995833150,-150.0,0.00030068,2]
[378732867,1754995833160,-2000.0,0.000301,2]
[378732869,1754995833170,-156.31,0.00030169,2]
[378732871,1754995833179,-156.31,0.00030188,2]
[378732873,1754995833188,-150.0,0.00030188,2]
[378732875,1754995833197,-150.0,0.00030188,2]
[378732877,1754995833207,-150.0,0.00030188,2]
[378732879,1754995833216,-150.0,0.00030188,2]
[378732881,1754995833226,-150.0,0.00030188,2]
[378732883,1754995833235,-156.31,0.00030207,2]
[378732885,1754995833245,-156.31,0.00030225,2]
[378732887,1754995833255,-156.31,0.00030244,2]
[378732889,1754995833264,-156.31,0.00030263,2]
[378732891,1754995833274,-156.31,0.00030282,2]
[378732893,1754995833284,-156.31,0.00030301,2]
[378732895,1754995833294,-156.31,0.0003032,2]
[378732897,1754995833303,-590.401,0.0003033,25]
[378732899,1754995833312,-156.31,0.00030338,2]
[378732901,1754995833321,-292.98079316,0.00030342,2]
[378732903,1754995833331,-9103.0,0.00030342,2]
[378732905,1754995833341,-206.35071288,0.00030342,2]
[378732907,1754995833350,-150.0,0.00030342,2]
[378732909,1754995833359,-207.76073207,0.00030342,2]
[378732911,1754995833370,-243.09795208,0.00030342,2]
[378732913,1754995833379,-205.90490854,0.00030342,2]
[378732915,1754995833389,-156.31,0.00030357,2]
[378732917,1754995833398,-9535.60010308,0.0003037,2]
[378732919,1754995833408,-156.31,0.00030376,2]
[378732921,1754995833418,-156.31,0.00030395,2]
[378732923,1754995833427,-156.31,0.00030414,2]
[378732925,1754995833436,-156.31,0.00030433,2]
[378732927,1754995833445,-156.31,0.00030452,2]
[378732929,1754995833455,-150.0,0.00030462,2]
[378732931,1754995833464,-150.0,0.00030462,2]
[378732933,1754995833473,-150.0,0.00030462,2]
[378732934,1754995833483,-156.31,0.0003047,2]
[378732936,1754995833493,-159.78,0.00030521,2]
[378732938,1754995833503,-154.36,0.00030602,2]
[378732941,1754995833513,-9103.0,0.00030616,2]
[378732943,1754995833523,-250.0,0.00030616,2]
[378732945,1754995833533,-170.0,0.00030714,7]
[378732946,1754995833543,-150.0,0.00030736,2]
[378732949,1754995833553,-150.0,0.00030736,2]
[378732950,1754995833563,-202.19368012,0.00030736,2]
[378732951,1754995833572,-9103.0,0.0003089,2]
[378732952,1754995833582,-299.43552422,0.0003101,2]
[378732953,1754995833591,-150.0,0.0003101,2]
[378732954,1754995833600,-9103.0,0.00031164,2]
[378732955,1754995833610,-439.82,0.00031213,2]
[378732956,1754995833620,-250.0,0.00031284,2]
[378732957,1754995833630,-9535.60010308,0.00031318,2]
[378732958,1754995833639,-9103.0,0.00031438,2]
[378732959,1754995833649,-159.78,0.00031549,2]
[378732960,1754995833659,-9103.0,0.00031712,2]
[378732961,1754995833668,-9103.0,0.00031986,2]
[378732962,1754995833678,-295.564974,0.00032011,7]
[378732963,1754995833687,-295.425146,0.00032011,7]
[378732964,1754995833697,-151.552124,0.00032011,7]
[378732965,1754995833706,-151.0,0.00032011,7]
[378732966,1754995833716,-23900.0,0.00032011,2]
[378732967,1754995833726,-1000.0,0.00032115,2]
[378732968,1754995833736,-9103.0,0.0003226,2]
[378732970,1754995833747,-152.508696,0.0003226,7]
[378732972,1754995833756,-151.566368,0.0003226,7]
[378732974,1754995833765,-151.0,0.0003226,7]
[378732976,1754995833775,-151.0,0.0003226,7]
[378732978,1754995833784,-189.990386,0.0003226,7]
[378732980,1754995833794,-151.0,0.0003226,7]
[378732982,1754995833804,-151.0,0.0003226,7]
[378732984,1754995833814,-169.323054,0.0003226,7]
[378732986,1754995833823,-151.0,0.0003226,7]
[378732988,1754995833833,-9535.60010308,0.00032266,2]
[378732990,1754995833843,-9103.0,0.00032534,2]
[378732992,1754995833852,-151.0,0.00032534,7]
[378732994,1754995833862,-151.0,0.00032534,7]
[378732996,1754995833871,-234.63955,0.00032537,7]
[378732998,1754995833881,-268.21866896,0.00032537,7]
[378733000,1754995833890,-151.0,0.00032537,7]
[378733002,1754995833900,-151.0,0.00032537,7]
[378733004,1754995833909,-151.0,0.00032537,7]
[378733006,1754995833919,-439.82,0.00032632,2]
[378733008,1754995833929,-154.36,0.00032657,2]
[378733010,1754995833938,-313.35984974,0.00032776,2]
[378733012,1754995833948,-512.0,0.00032779,2]
[378733014,1754995833957,-151.0,0.00032787,7]
[378733016,1754995833967,-151.0,0.00032787,7]
[378733018,1754995833976,-151.0,0.00032787,7]
[378733020,1754995833986,-152.037499,0.00032787,7]
[378733022,1754995833999,-151.0,0.00032787,7]
[378733024,1754995834009,-151.0,0.00032787,7]
[378733026,1754995834019,-151.0,0.00032787,7]
[378733028,1754995834029,-151.0,0.00032787,7]
[378733030,1754995834040,-151.0,0.00032787,7]
[378733032,1754995834049,-157.962632,0.00032787,7]
[378733034,1754995834058,-151.0,0.00032787,7]
[378733036,1754995834068,-151.0,0.00032787,7]
[378733038,1754995834079,-153.349189,0.00032787,7]
[378733040,1754995834089,-151.0,0.00032787,7]
[378733042,1754995834098,-9103.0,0.00032808,2]
[378733044,1754995834108,-150.0,0.00032876,36]
[378733046,1754995834117,-2000.0,0.000329,2]
[378733048,1754995834127,-9103.0,0.00033082,2]
[378733050,1754995834136,-151.0,0.00033212,7]
[378733052,1754995834146,-151.0,0.00033212,7]
[378733054,1754995834156,-151.0,0.00033212,7]
[378733056,1754995834166,-151.0,0.00033212,7]
[378733058,1754995834176,-191.551052,0.00033212,7]
[378733060,1754995834185,-151.350376,0.00033213,7]
[378733062,1754995834194,-9535.60010308,0.00033213,2]
[378733064,1754995834204,-151.0,0.00033333,7]
[378733066,1754995834213,-151.0,0.00033333,7]
[378733068,1754995834222,-9103.0,0.00033356,2]
[378733070,1754995834231,-152.879255,0.00033486,7]
[378733072,1754995834241,-151.0,0.00033486,7]
[378733074,1754995834250,-214.767073,0.00033486,7]
[378733076,1754995834259,-214.767073,0.00033486,7]
[378733078,1754995834268,-151.0,0.00033486,7]
[378733080,1754995834278,-565.075843,0.00033486,7]
[378733082,1754995834287,-565.075843,0.00033486,7]
[378733084,1754995834296,-811.0,0.00033608,5]
[378733086,1754995834305,-9103.0,0.0003363,2]
[378733088,1754995834315,-151.0,0.0003363,7]
[378733090,1754995834324,-151.0,0.0003363,7]
[378733092,1754995834333,-151.0,0.0003363,7]
[378733093,1754995834343,-151.0,0.0003363,7]
[378733095,1754995834352,-154.570071,0.0003363,7]
[378733097,1754995834361,-151.0,0.00033779,7]
[378733099,1754995834371,-151.0,0.00033779,7]
[378733101,1754995834379,-151.0,0.00033779,7]
[378733103,1754995834388,-1458.36016141,0.00033898,5]
[378733105,1754995834397,-9103.0,0.00033904,2]
[378733107,1754995834407,-151.0,0.00033904,7]
[378733109,1754995834417,-191.0,0.00034,30]
[378733111,1754995834433,-180.940077,0.00034007,7]
[378733113,1754995834442,-151.0,0.00034007,7]
[378733115,1754995834451,-439.82,0.00034051,2]
[378733117,1754995834461,-151.0,0.00034128,7]
[378733119,1754995834470,-152.729581,0.00034128,7]
[378733121,1754995834479,-151.0,0.00034128,7]
[378733123,1754995834489,-151.0,0.00034128,7]
[378733125,1754995834498,-151.0,0.00034128,7]
[378733128,1754995834510,-260.39091,0.00034128,7]
[378733129,1754995834527,-151.0,0.00034128,7]
[378733131,1754995834536,-9535.60010308,0.00034161,2]
[378733134,1754995834546,-9103.0,0.00034178,2]
[378733136,1754995834555,-317.11,0.00034192,30]
[378733138,1754995834564,-152.471953,0.00034308,7]
[378733140,1754995834573,-151.0,0.00034308,7]
[378733142,1754995834582,-152.817249,0.00034308,7]
[378733144,1754995834592,-179.950806,0.00034308,7]
[378733145,1754995834601,-313.35984969,0.00034342,2]
[378733147,1754995834610,-9103.0,0.00034452,2]
[378733149,1754995834620,-151.0,0.00034582,7]
[378733151,1754995834629,-151.0,0.00034582,7]
[378733153,1754995834638,-180.59,0.00034679,2]
[378733155,1754995834647,-154.36,0.00034712,2]
[378733157,1754995834656,-9103.0,0.00034726,2]
[378733159,1754995834666,-2990.69594869,0.00034756,2]
[378733161,1754995834675,-151.0,0.0003483,7]
[378733163,1754995834684,-151.0,0.0003483,7]
[378733165,1754995834694,-368.9,0.00034843,14]
[378733167,1754995834703,-164.19,0.00034846,14]
[378733169,1754995834713,-565.075843,0.00034856,7]
[378733171,1754995834722,-565.075843,0.00034856,7]
[378733173,1754995834731,-151.0,0.00034923,7]
[378733175,1754995834740,-843.0035059,0.00034989,2]
[378733177,1754995834750,-9103.0,0.00034999,2]
[378733179,1754995834760,-152.807329,0.0003503,7]
[378733181,1754995834770,-9535.60010308,0.00035109,2]
[378733183,1754995834779,-151.0,0.0003513,7]
[378733185,1754995834788,-214.767073,0.0003513,7]
[378733187,1754995834797,-214.767073,0.0003513,7]
[378733189,1754995834806,-151.0,0.0003513,7]
[378733191,1754995834816,-151.0,0.0003513,7]
[378733193,1754995834825,-151.0,0.0003513,7]
[378733195,1754995834835,-151.0,0.0003513,7]
[378733197,1754995834844,-151.0,0.0003513,7]
[378733199,1754995834853,-151.0,0.0003513,7]
[378733201,1754995834863,-151.0,0.0003513,7]
[378733203,1754995834872,-2990.6959486,0.00035216,2]
[378733205,1754995834882,-172.703071,0.00035253,7]
[378733207,1754995834891,-151.0,0.00035273,7]
[378733209,1754995834901,-9103.0,0.00035273,2]
[378733211,1754995834911,-151.0,0.00035404,7]
[378733213,1754995834920,-151.0,0.00035404,7]
[378733215,1754995834930,-9103.0,0.00035547,2]
[378733217,1754995834939,-2000.0,0.000356,2]
[378733219,1754995834948,-2990.6959486,0.00035677,2]
[378733221,1754995834958,-151.0,0.00035678,7]
[378733223,1754995834967,-151.0,0.00035678,7]
[378733225,1754995834976,-1000.0,0.00035683,2]
[378733227,1754995834985,-151.0,0.00035719,7]
[378733229,1754995834997,-151.0,0.00035719,7]
[378733231,1754995835007,-9103.0,0.00035821,2]
[378733233,1754995835017,-313.35984969,0.00035907,2]
[378733235,1754995835027,-151.0,0.00035917,7]
[378733237,1754995835036,-500.0,0.00035917,120]
[378733239,1754995835046,-2069.62089097,0.00036015,8]
[378733241,1754995835056,-500.0,0.00036054,120]
[378733243,1754995835065,-9535.60010308,0.00036057,2]
[378733245,1754995835075,-151.0,0.00036075,7]
[378733247,1754995835084,-151.0,0.00036075,7]
[378733248,1754995835094,-151.0,0.00036075,7]
[378733250,1754995835103,-9106.781867,0.00036095,2]
[378733253,1754995835113,-2990.6959486,0.00036137,2]
[378733254,1754995835122,-500.0,0.00036175,7]
[378733257,1754995835132,-512.0,0.00036182,9]
[378733258,1754995835141,-151.0,0.00036182,7]
[378733261,1754995835151,-151.0,0.00036182,7]
[378733263,1754995835160,-151.0,0.00036182,7]
[378733264,1754995835169,-272.825022,0.00036182,7]
[378733267,1754995835179,-221.30180983,0.00036191,120]
[378733268,1754995835188,-565.075843,0.00036499,7]
[378733270,1754995835197,-565.075843,0.00036499,7]
[378733272,1754995835206,-247.385547,0.00036499,7]
[378733274,1754995835216,-161.093644,0.00036499,7]
[378733276,1754995835225,-2990.6959486,0.00036598,2]
[378733278,1754995835234,-151.0,0.00036622,7]
[378733280,1754995835244,-151.0,0.00036622,7]
[378733281,1754995835253,-154.36,0.00036767,2]
[378733282,1754995835367,-152.190923,0.00036773,7]
[378733283,1754995835391,-214.767073,0.00036773,7]
[378733284,1754995835401,-214.767073,0.00036773,7]
[378733285,1754995835410,-1000.0,0.000368,7]
[378733286,1754995835419,-1253.0,0.00036851,2]
[378733287,1754995835429,-810.0,0.00036851,2]
[378733288,1754995835438,-1048.0,0.00036851,2]
[378733289,1754995835447,-565.0,0.00036851,2]
[378733290,1754995835456,-1171.0,0.00036851,2]
[378733291,1754995835466,-893.0,0.00036851,2]
[378733292,1754995835475,-6104.719,0.00036851,2]
[378733293,1754995835484,-4146.0,0.00036851,2]
[378733294,1754995835493,-21466.0,0.00036851,2]
[378733295,1754995835502,-151.0,0.00036851,7]
[378733296,1754995835512,-151.0,0.00036851,7]
[378733297,1754995835522,-151.0,0.00036851,7]
[378733298,1754995835531,-151.0,0.00036851,7]
[378733299,1754995835540,-293.56972,0.00036851,7]
[378733300,1754995835549,-151.0,0.00036851,7]
[378733301,1754995835559,-152.172678,0.00036851,7]
[378733302,1754995835569,-565.075843,0.00036967,7]
[378733303,1754995835578,-565.075843,0.00036967,7]
[378733304,1754995835588,-180.639181,0.00036988,7]
[378733305,1754995835597,-2206.768463,0.00036995,3]
[378733306,1754995835606,-9535.60010308,0.00037004,2]
[378733307,1754995835616,-28889.0797017,0.00037005,3]
[378733308,1754995835626,-151.0,0.00037015,7]
[378733309,1754995835635,-151.0,0.00037015,7]
[378733310,1754995835644,-151.0,0.00037015,7]
[378733311,1754995835654,-229.400712,0.00037015,7]
[378733312,1754995835664,-151.0,0.00037015,7]
[378733313,1754995835673,-151.0,0.00037015,7]
[378733314,1754995835682,-151.0,0.00037015,7]
[378733315,1754995835692,-151.0,0.00037015,7]
[378733316,1754995835701,-214.767073,0.00037047,7]
[378733317,1754995835711,-214.767073,0.00037047,7]
[378733318,1754995835720,-29305.08434731,0.00037052,7]
[378733319,1754995835729,-2990.6959486,0.00037058,2]
[378733320,1754995835738,-200.29,0.00037067,2]
[378733321,1754995835748,-503.30165892,0.00037375,7]
[378733322,1754995835757,-313.35984969,0.00037473,2]
[378733323,1754995835767,-2990.6959486,0.00037519,2]
[378733324,1754995835777,-565.075843,0.00037595,7]
[378733325,1754995835786,-565.075843,0.00037595,7]
[378733326,1754995835798,-404.61934176,0.00037662,4]
[378733327,1754995835808,-172.15,0.00037902,2]
[378733328,1754995835817,-9535.60010308,0.00037952,2]
[378733329,1754995835827,-2990.6959486,0.00037979,2]
[378733330,1754995835837,-5000.0,0.00038,8]
[378733331,1754995835846,-151.0,0.00038,7]
[378733332,1754995835856,-151.0,0.00038,7]
[378733333,1754995835866,-151.0,0.00038,7]
[378733334,1754995835875,-172.15,0.00038029,2]
[378733335,1754995835884,-172.15,0.00038155,2]
[378733336,1754995835894,-172.15,0.00038281,2]
[378733337,1754995835903,-28889.0797017,0.0003837,3]
[378733338,1754995835912,-565.075843,0.0003839,30]
[378733339,1754995835923,-565.075843,0.0003839,30]
[378733340,1754995835932,-151.0,0.0003839,30]
[378733341,1754995835941,-1000.0,0.000384,2]
[378733342,1754995835951,-2990.6959486,0.0003844,2]
[378733343,1754995835960,-499.999,0.000385,60]
[378733344,1754995835969,-255.006276,0.00038521,30]
[378733345,1754995835979,-151.0,0.00038521,30]
[378733346,1754995835989,-151.0,0.00038521,30]
[378733347,1754995836001,-18719.85670792,0.00038679,31]
[378733348,1754995836010,-8189.5503351,0.00038679,61]
[378733349,1754995836020,-28889.0797017,0.0003868,3]
[378733350,1754995836029,-86667.239105,0.0003868,3]
[378733351,1754995836041,-300.0,0.00038689,10]
[378733352,1754995836050,-57778.1594033,0.0003869,3]
[378733353,1754995836059,-151.0,0.0003869,30]
[378733354,1754995836069,-151.0,0.0003869,30]
[378733355,1754995836080,-151.0,0.0003869,30]
[378733356,1754995836090,-151.0,0.0003869,30]
[378733357,1754995836099,-300.0,0.00038699,10]
[378733358,1754995836108,-151.363716,0.000387,30]
[378733359,1754995836118,-151.0,0.000387,30]
[378733360,1754995836128,-214.767073,0.000387,30]
[378733361,1754995836137,-214.767073,0.000387,30]
[378733362,1754995836149,-565.075843,0.000387,30]
[378733363,1754995836160,-565.075843,0.000387,30]
[378733364,1754995836170,-151.0,0.000387,30]
[378733365,1754995836179,-151.0,0.000387,30]
[378733366,1754995836189,-151.0,0.000387,30]
[378733367,1754995836198,-151.0,0.000387,30]
[378733368,1754995836207,-154752.10366304,0.000387,18]
[378733369,1754995836217,-468.07,0.00038712,2]
[378733370,1754995836226,-468.07,0.00038712,2]
[378733371,1754995836235,-468.07,0.00038712,2]
[378733372,1754995836244,-154.36,0.00038821,2]
[378733373,1754995836253,-28889.0797017,0.00038843,3]
[378733374,1754995836263,-28889.0797017,0.0003889,3]
[378733375,1754995836272,-618.41057908,0.00038893,2]